[Event "Titled Tuesday Blitz November 07 Late 2023"]
[White "Colivet Gamboa, Julio Cesar"]
[Black "Sreyas Payyappat"]
[WhiteFideId "3949583"]
[BlackFideId "46674969"]
[WhiteElo "2297"]
[BlackElo "2499"]
[Result "0-1"]
[Round "3"]
[TimeControl "180+1"]
[Date "2023.11.07"]
[WhiteClock "0:00:00"]
[BlackClock "0:01:06"]
[Board "137"]

1. c4 {[%clk 0:02:09]}  c5 {[%clk 0:02:58]} 2. Nc3 {[%clk 0:02:09]}  Nc6 {[%clk 0:02:57]} 3. g3 {[%clk 0:02:09]}  Nf6 {[%clk 0:02:57]} 4. Bg2 {[%clk 0:02:10]}  g6 {[%clk 0:02:58]} 5. e4 {[%clk 0:02:10]}  Bg7 {[%clk 0:02:58]} 6. Nge2 {[%clk 0:02:11]}  d6 {[%clk 0:02:58]} 7. O-O {[%clk 0:02:11]}  O-O {[%clk 0:02:58]} 8. d3 {[%clk 0:02:12]}  Ng4 {[%clk 0:02:51]} 9. h3 {[%clk 0:02:11]}  Nge5 {[%clk 0:02:51]} 10. Be3 {[%clk 0:02:10]}  f5 {[%clk 0:02:50]} 11. Rc1 {[%clk 0:02:07]}  Kh8 {[%clk 0:02:49]} 12. b3 {[%clk 0:02:06]}  Be6 {[%clk 0:02:42]} 13. d4 {[%clk 0:02:06]}  cxd4 {[%clk 0:02:42]} 14. Nxd4 {[%clk 0:02:07]}  Nxd4 {[%clk 0:02:42]} 15. Bxd4 {[%clk 0:02:07]}  Qd7 {[%clk 0:02:39]} 16. f4 {[%clk 0:02:02]}  Nc6 {[%clk 0:02:33]} 17. Bxg7+ {[%clk 0:02:01]}  Kxg7 {[%clk 0:02:34]} 18. exf5 {[%clk 0:01:57]}  Bxf5 {[%clk 0:02:35]} 19. g4 {[%clk 0:01:57]}  Be6 {[%clk 0:02:35]} 20. Re1 {[%clk 0:01:52]}  Rxf4 {[%clk 0:02:31]} 21. Nd5 {[%clk 0:01:52]}  Rf7 {[%clk 0:02:20]} 22. Qd3 {[%clk 0:01:31]}  Raf8 {[%clk 0:02:15]} 23. Qc3+ {[%clk 0:01:23]}  Kg8 {[%clk 0:02:12]} 24. Qe3 {[%clk 0:01:23]}  Ne5 {[%clk 0:02:10]} 25. c5 {[%clk 0:01:16]}  Bxg4 {[%clk 0:01:30]} 26. hxg4 {[%clk 0:01:12]}  Qxg4 {[%clk 0:01:31]} 27. Qh3 {[%clk 0:00:17]}  Qd4+ {[%clk 0:01:11]} 28. Kh1 {[%clk 0:00:16]}  Nd3 {[%clk 0:01:08]} 29. Nxe7+ {[%clk 0:00:02]}  Rxe7 {[%clk 0:01:07]} 30. Rxe7 {[%clk 0:00:00]}  Nf2+ {[%clk 0:01:06]} 0-1


[Site "https://www.chess.com"]

[Event "Titled Tuesday Blitz November 07 Late 2023"]
[White "Osmonbekov, Talaibek"]
[Black "Hajiyev, Kanan"]
[WhiteFideId "2017253"]
[BlackFideId "13404148"]
[WhiteElo "2292"]
[BlackElo "2493"]
[Result "1-0"]
[Round "3"]
[TimeControl "180+1"]
[Date "2023.11.07"]
[WhiteClock "0:00:09"]
[BlackClock "0:00:19"]
[Board "139"]

1. d4 {[%clk 0:03:00]}  d5 {[%clk 0:02:59]} 2. Nc3 {[%clk 0:03:01]}  c6 {[%clk 0:03:00]} 3. Bf4 {[%clk 0:03:01]}  a6 {[%clk 0:03:01]} 4. e4 {[%clk 0:03:00]}  Nf6 {[%clk 0:03:01]} 5. e5 {[%clk 0:02:58]}  Ne4 {[%clk 0:03:02]} 6. Nxe4 {[%clk 0:02:56]}  dxe4 {[%clk 0:03:03]} 7. Bc4 {[%clk 0:02:54]}  b5 {[%clk 0:03:00]} 8. Bb3 {[%clk 0:02:54]}  a5 {[%clk 0:03:00]} 9. a4 {[%clk 0:02:52]}  b4 {[%clk 0:02:54]} 10. e6 {[%clk 0:02:39]}  Bxe6 {[%clk 0:02:40]} 11. Bxe6 {[%clk 0:02:39]}  fxe6 {[%clk 0:02:41]} 12. Be5 {[%clk 0:02:29]}  Nd7 {[%clk 0:02:38]} 13. Nh3 {[%clk 0:02:16]}  Nxe5 {[%clk 0:02:37]} 14. dxe5 {[%clk 0:02:16]}  Qxd1+ {[%clk 0:02:38]} 15. Rxd1 {[%clk 0:02:16]}  Rd8 {[%clk 0:02:26]} 16. Rxd8+ {[%clk 0:02:10]}  Kxd8 {[%clk 0:02:27]} 17. Ng5 {[%clk 0:02:04]}  Kd7 {[%clk 0:02:27]} 18. Ke2 {[%clk 0:02:04]}  g6 {[%clk 0:02:10]} 19. Rd1+ {[%clk 0:02:03]}  Kc8 {[%clk 0:02:06]} 20. Nf7 {[%clk 0:01:34]}  Rg8 {[%clk 0:02:05]} 21. Rd8+ {[%clk 0:01:33]}  Kc7 {[%clk 0:02:02]} 22. Ra8 {[%clk 0:01:28]}  Kb7 {[%clk 0:02:00]} 23. Re8 {[%clk 0:01:16]}  Kc7 {[%clk 0:01:55]} 24. Ng5 {[%clk 0:01:08]}  Kd7 {[%clk 0:01:49]} 25. Ra8 {[%clk 0:01:08]}  h6 {[%clk 0:01:41]} 26. Nh7 {[%clk 0:01:08]}  c5 {[%clk 0:01:25]} 27. Nxf8+ {[%clk 0:00:56]}  Kc6 {[%clk 0:01:26]} 28. Rd8 {[%clk 0:00:55]}  c4 {[%clk 0:01:19]} 29. Ke3 {[%clk 0:00:55]}  g5 {[%clk 0:01:15]} 30. Nxe6 {[%clk 0:00:51]}  Rg6 {[%clk 0:01:08]} 31. Nd4+ {[%clk 0:00:49]}  Kc7 {[%clk 0:01:09]} 32. Rd5 {[%clk 0:00:47]}  Kb6 {[%clk 0:01:06]} 33. Rb5+ {[%clk 0:00:46]}  Ka6 {[%clk 0:01:07]} 34. Kxe4 {[%clk 0:00:45]}  g4 {[%clk 0:01:03]} 35. e6 {[%clk 0:00:41]}  Rf6 {[%clk 0:00:58]} 36. Rf5 {[%clk 0:00:37]}  Rg6 {[%clk 0:00:58]} 37. g3 {[%clk 0:00:37]}  Kb6 {[%clk 0:00:57]} 38. Kd5 {[%clk 0:00:36]}  c3 {[%clk 0:00:55]} 39. b3 {[%clk 0:00:35]}  Rg8 {[%clk 0:00:51]} 40. Ke4 {[%clk 0:00:35]}  Rg6 {[%clk 0:00:41]} 41. Rb5+ {[%clk 0:00:34]}  Ka6 {[%clk 0:00:41]} 42. Rd5 {[%clk 0:00:34]}  Rf6 {[%clk 0:00:40]} 43. Ke3 {[%clk 0:00:31]}  Kb6 {[%clk 0:00:37]} 44. Rd7 {[%clk 0:00:31]}  Kc5 {[%clk 0:00:37]} 45. Rxe7 {[%clk 0:00:29]}  h5 {[%clk 0:00:37]} 46. Rh7 {[%clk 0:00:27]}  Rf8 {[%clk 0:00:34]} 47. Rxh5+ {[%clk 0:00:27]}  Kd6 {[%clk 0:00:33]} 48. Rxa5 {[%clk 0:00:27]}  Rh8 {[%clk 0:00:33]} 49. Rg5 {[%clk 0:00:25]}  Rxh2 {[%clk 0:00:33]} 50. Rxg4 {[%clk 0:00:25]}  Rh1 {[%clk 0:00:33]} 51. Rg7 {[%clk 0:00:24]}  Re1+ {[%clk 0:00:31]} 52. Kd3 {[%clk 0:00:23]}  Rd1+ {[%clk 0:00:31]} 53. Kc4 {[%clk 0:00:23]}  Ke5 {[%clk 0:00:29]} 54. Rg5+ {[%clk 0:00:20]}  Kf6 {[%clk 0:00:29]} 55. Rf5+ {[%clk 0:00:19]}  Kg6 {[%clk 0:00:28]} 56. e7 {[%clk 0:00:18]}  Re1 {[%clk 0:00:27]} 57. Kxb4 {[%clk 0:00:13]}  Rxe7 {[%clk 0:00:26]} 58. Kxc3 {[%clk 0:00:13]}  Re4 {[%clk 0:00:25]} 59. Kd3 {[%clk 0:00:13]}  Re7 {[%clk 0:00:25]} 60. a5 {[%clk 0:00:11]}  Rc7 {[%clk 0:00:25]} 61. b4 {[%clk 0:00:11]}  Ra7 {[%clk 0:00:26]} 62. Rc5 {[%clk 0:00:10]}  Kf6 {[%clk 0:00:25]} 63. a6 {[%clk 0:00:10]}  Ra8 {[%clk 0:00:25]} 64. b5 {[%clk 0:00:10]}  Ke7 {[%clk 0:00:24]} 65. Rc6 {[%clk 0:00:10]}  Kd7 {[%clk 0:00:25]} 66. f4 {[%clk 0:00:10]}  Rf8 {[%clk 0:00:25]} 67. f5 {[%clk 0:00:10]}  Rg8 {[%clk 0:00:25]} 68. a7 {[%clk 0:00:09]}  Rxg3+ {[%clk 0:00:25]} 69. Kc4 {[%clk 0:00:09]}  Ra3 {[%clk 0:00:19]} 70. Ra6 {[%clk 0:00:09]} 1-0


[Site "https://www.chess.com"]

[Event "Titled Tuesday Blitz November 07 Late 2023"]
[White "Dylag, Emilia"]
[Black "Sepulveda Rojas, Jorge"]
[WhiteFideId "21805172"]
[BlackFideId "3404803"]
[WhiteElo "2285"]
[BlackElo "2481"]
[Result "0-1"]
[Round "3"]
[TimeControl "180+1"]
[Date "2023.11.07"]
[WhiteClock "0:00:01"]
[BlackClock "0:00:30"]
[Board "141"]

1. d4 {[%clk 0:03:00]}  e6 {[%clk 0:02:58]} 2. c4 {[%clk 0:03:01]}  Nf6 {[%clk 0:02:57]} 3. g3 {[%clk 0:03:01]}  c5 {[%clk 0:02:55]} 4. d5 {[%clk 0:02:59]}  exd5 {[%clk 0:02:55]} 5. cxd5 {[%clk 0:03:00]}  d6 {[%clk 0:02:51]} 6. Bg2 {[%clk 0:03:00]}  Be7 {[%clk 0:02:50]} 7. Nc3 {[%clk 0:02:57]}  O-O {[%clk 0:02:50]} 8. Nf3 {[%clk 0:02:55]}  Bf5 {[%clk 0:02:49]} 9. O-O {[%clk 0:02:54]}  Re8 {[%clk 0:02:48]} 10. Nh4 {[%clk 0:02:53]}  Bg6 {[%clk 0:02:47]} 11. Nxg6 {[%clk 0:02:48]}  hxg6 {[%clk 0:02:46]} 12. e4 {[%clk 0:02:48]}  Nfd7 {[%clk 0:02:43]} 13. f4 {[%clk 0:02:43]}  Na6 {[%clk 0:02:40]} 14. Re1 {[%clk 0:02:38]}  Bf6 {[%clk 0:02:40]} 15. Be3 {[%clk 0:02:26]}  Rb8 {[%clk 0:02:40]} 16. a4 {[%clk 0:02:24]}  Nb4 {[%clk 0:02:39]} 17. Nb5 {[%clk 0:01:55]}  Qb6 {[%clk 0:02:37]} 18. Nc3 {[%clk 0:01:35]}  a6 {[%clk 0:02:29]} 19. a5 {[%clk 0:01:31]}  Qc7 {[%clk 0:02:26]} 20. h4 {[%clk 0:01:20]}  b6 {[%clk 0:02:20]} 21. Bh3 {[%clk 0:01:02]}  b5 {[%clk 0:01:57]} 22. Qg4 {[%clk 0:00:55]}  Nf8 {[%clk 0:01:50]} 23. Re2 {[%clk 0:00:32]}  Nd3 {[%clk 0:01:48]} 24. Rf1 {[%clk 0:00:11]}  Qxa5 {[%clk 0:01:30]} 25. h5 {[%clk 0:00:05]}  gxh5 {[%clk 0:01:14]} 26. Qxh5 {[%clk 0:00:06]}  g6 {[%clk 0:01:12]} 27. Qg4 {[%clk 0:00:06]}  Nxb2 {[%clk 0:01:00]} 28. e5 {[%clk 0:00:05]}  Qxc3 {[%clk 0:00:57]} 29. Bd2 {[%clk 0:00:03]}  Qd4+ {[%clk 0:00:55]} 30. Be3 {[%clk 0:00:03]}  Qxd5 {[%clk 0:00:52]} 31. exf6 {[%clk 0:00:03]}  Nc4 {[%clk 0:00:50]} 32. Qh4 {[%clk 0:00:03]}  Nh7 {[%clk 0:00:46]} 33. Qh6 {[%clk 0:00:02]}  Nxf6 {[%clk 0:00:46]} 34. f5 {[%clk 0:00:03]}  Qe4 {[%clk 0:00:41]} 35. fxg6 {[%clk 0:00:03]}  Qxg6 {[%clk 0:00:41]} 36. Qxg6+ {[%clk 0:00:02]}  fxg6 {[%clk 0:00:42]} 37. Rxf6 {[%clk 0:00:02]}  Rxe3 {[%clk 0:00:40]} 38. Be6+ {[%clk 0:00:01]}  Kg7 {[%clk 0:00:39]} 39. Rf7+ {[%clk 0:00:02]}  Kh6 {[%clk 0:00:39]} 40. Bxc4 {[%clk 0:00:02]}  Rxe2 {[%clk 0:00:38]} 41. Bxe2 {[%clk 0:00:01]}  b4 {[%clk 0:00:33]} 42. Rd7 {[%clk 0:00:02]}  Rb6 {[%clk 0:00:31]} 43. Rxd6 {[%clk 0:00:01]}  Rxd6 {[%clk 0:00:30]} 0-1


[Site "https://www.chess.com"]

[Event "Titled Tuesday Blitz November 07 Late 2023"]
[White "Minina, Veronika"]
[Black "Minko, Dmitry"]
[WhiteFideId "4174780"]
[BlackFideId "24188468"]
[WhiteElo "2281"]
[BlackElo "2473"]
[Result "1-0"]
[Round "3"]
[TimeControl "180+1"]
[Date "2023.11.07"]
[WhiteClock "0:01:04"]
[BlackClock "0:01:10"]
[Board "143"]

1. Nf3 {[%clk 0:02:57]}  d5 {[%clk 0:02:52]} 2. g3 {[%clk 0:02:54]}  Nf6 {[%clk 0:02:48]} 3. Bg2 {[%clk 0:02:51]}  e6 {[%clk 0:02:49]} 4. c4 {[%clk 0:02:51]}  dxc4 {[%clk 0:02:49]} 5. Na3 {[%clk 0:02:50]}  Bxa3 {[%clk 0:02:43]} 6. bxa3 {[%clk 0:02:45]}  O-O {[%clk 0:02:42]} 7. a4 {[%clk 0:02:43]}  Re8 {[%clk 0:02:40]} 8. Ba3 {[%clk 0:02:39]}  Nc6 {[%clk 0:02:39]} 9. O-O {[%clk 0:02:39]}  e5 {[%clk 0:02:38]} 10. Qc1 {[%clk 0:02:29]}  Be6 {[%clk 0:02:37]} 11. Ng5 {[%clk 0:02:25]}  Bd5 {[%clk 0:02:36]} 12. e4 {[%clk 0:02:24]}  Be6 {[%clk 0:02:36]} 13. Nxe6 {[%clk 0:02:23]}  Rxe6 {[%clk 0:02:37]} 14. Qxc4 {[%clk 0:02:20]}  Qxd2 {[%clk 0:02:29]} 15. Rfd1 {[%clk 0:02:16]}  Qa5 {[%clk 0:02:28]} 16. Rab1 {[%clk 0:02:14]}  Rb8 {[%clk 0:02:13]} 17. Rb5 {[%clk 0:01:57]}  Qa6 {[%clk 0:02:13]} 18. Bf1 {[%clk 0:01:33]}  h6 {[%clk 0:02:02]} 19. Rdb1 {[%clk 0:01:12]}  Nd4 {[%clk 0:01:13]} 20. Qxc7 {[%clk 0:01:08]}  Rbe8 {[%clk 0:01:10]} 21. Rxb7 {[%clk 0:01:04]} 1-0


[Site "https://www.chess.com"]

[Event "Titled Tuesday Blitz November 07 Late 2023"]
[White "Harish, Neeraj"]
[Black "Su, Dion"]
[WhiteFideId "30958130"]
[BlackFideId "2029731"]
[WhiteElo "2256"]
[BlackElo "2425"]
[Result "1-0"]
[Round "3"]
[TimeControl "180+1"]
[Date "2023.11.07"]
[WhiteClock "0:00:04"]
[BlackClock "0:00:18"]
[Board "146"]

1. e4 {[%clk 0:02:58]}  Nc6 {[%clk 0:02:57]} 2. Nf3 {[%clk 0:02:55]}  d6 {[%clk 0:02:57]} 3. d4 {[%clk 0:02:53]}  Nf6 {[%clk 0:02:57]} 4. Nc3 {[%clk 0:02:53]}  a6 {[%clk 0:02:57]} 5. Bd3 {[%clk 0:02:47]}  g6 {[%clk 0:02:57]} 6. O-O {[%clk 0:02:46]}  Bg7 {[%clk 0:02:57]} 7. h3 {[%clk 0:02:06]}  O-O {[%clk 0:02:57]} 8. Be3 {[%clk 0:02:06]}  e6 {[%clk 0:02:46]} 9. Qd2 {[%clk 0:02:03]}  b5 {[%clk 0:02:40]} 10. Ne2 {[%clk 0:01:56]}  Bb7 {[%clk 0:02:32]} 11. c3 {[%clk 0:01:14]}  e5 {[%clk 0:02:26]} 12. d5 {[%clk 0:01:12]}  Ne7 {[%clk 0:02:26]} 13. a4 {[%clk 0:01:05]}  c6 {[%clk 0:02:19]} 14. axb5 {[%clk 0:00:47]}  axb5 {[%clk 0:02:14]} 15. dxc6 {[%clk 0:00:44]}  Bxc6 {[%clk 0:02:13]} 16. Ng3 {[%clk 0:00:44]}  Qc7 {[%clk 0:02:02]} 17. Bc2 {[%clk 0:00:33]}  d5 {[%clk 0:01:50]} 18. exd5 {[%clk 0:00:17]}  Nexd5 {[%clk 0:01:49]} 19. Bc5 {[%clk 0:00:17]}  Rfd8 {[%clk 0:01:45]} 20. Qe2 {[%clk 0:00:17]}  Nd7 {[%clk 0:01:28]} 21. b4 {[%clk 0:00:12]}  Nf4 {[%clk 0:01:26]} 22. Qe1 {[%clk 0:00:12]}  Nxh3+ {[%clk 0:01:22]} 23. Kh2 {[%clk 0:00:12]}  Nf4 {[%clk 0:01:21]} 24. Be3 {[%clk 0:00:11]}  Nd5 {[%clk 0:01:06]} 25. Bb3 {[%clk 0:00:11]}  Rxa1 {[%clk 0:01:03]} 26. Qxa1 {[%clk 0:00:10]}  Nxe3 {[%clk 0:01:04]} 27. fxe3 {[%clk 0:00:11]}  e4 {[%clk 0:00:44]} 28. Ng5 {[%clk 0:00:09]}  Be5 {[%clk 0:00:41]} 29. Rxf7 {[%clk 0:00:08]}  Bxg3+ {[%clk 0:00:41]} 30. Kg1 {[%clk 0:00:08]}  Qb6 {[%clk 0:00:18]} 31. Rxd7+ {[%clk 0:00:06]}  Kf8 {[%clk 0:00:18]} 32. Qf1+ {[%clk 0:00:04]}  Ke8 {[%clk 0:00:18]} 33. Qf7# {[%clk 0:00:04]} 1-0


[Site "https://www.chess.com"]

[Event "Titled Tuesday Blitz November 07 Late 2023"]
[White "Broca Jimenez, Fernando"]
[Black "Gerbelli Neto, Eduardo"]
[WhiteFideId "5104742"]
[BlackFideId "2103281"]
[WhiteElo "2246"]
[BlackElo "2388"]
[Result "0-1"]
[Round "3"]
[TimeControl "180+1"]
[Date "2023.11.07"]
[WhiteClock "0:00:45"]
[BlackClock "0:01:47"]
[Board "149"]

1. e4 {[%clk 0:03:00]}  e5 {[%clk 0:02:59]} 2. Nf3 {[%clk 0:03:00]}  Nc6 {[%clk 0:02:59]} 3. Bb5 {[%clk 0:03:00]}  a6 {[%clk 0:02:59]} 4. Ba4 {[%clk 0:03:01]}  d6 {[%clk 0:02:58]} 5. O-O {[%clk 0:03:00]}  Bg4 {[%clk 0:02:58]} 6. c3 {[%clk 0:02:55]}  Qf6 {[%clk 0:02:56]} 7. d3 {[%clk 0:02:43]}  Ne7 {[%clk 0:02:47]} 8. Nbd2 {[%clk 0:02:40]}  g5 {[%clk 0:02:45]} 9. Re1 {[%clk 0:02:09]}  Bd7 {[%clk 0:02:42]} 10. d4 {[%clk 0:01:57]}  g4 {[%clk 0:02:36]} 11. dxe5 {[%clk 0:01:42]}  dxe5 {[%clk 0:02:37]} 12. Kh1 {[%clk 0:01:21]}  gxf3 {[%clk 0:02:37]} 13. Nxf3 {[%clk 0:01:21]}  O-O-O {[%clk 0:02:30]} 14. Qc2 {[%clk 0:01:16]}  Rg8 {[%clk 0:02:27]} 15. Be3 {[%clk 0:01:06]}  Qg6 {[%clk 0:02:13]} 16. Rg1 {[%clk 0:01:03]}  f5 {[%clk 0:02:11]} 17. Nh4 {[%clk 0:00:59]}  Qg4 {[%clk 0:02:01]} 18. Nxf5 {[%clk 0:00:58]}  Nxf5 {[%clk 0:02:01]} 19. exf5 {[%clk 0:00:56]}  Bxf5 {[%clk 0:01:58]} 20. Qb3 {[%clk 0:00:56]}  Be4 {[%clk 0:01:54]} 21. Bxc6 {[%clk 0:00:52]}  Bxc6 {[%clk 0:01:48]} 22. h3 {[%clk 0:00:45]}  Qxh3# {[%clk 0:01:47]} 0-1


[Site "https://www.chess.com"]

[Event "Titled Tuesday Blitz November 07 Late 2023"]
[White "Modric, Nesa"]
[Black "Dwilewicz, Katarzyna"]
[WhiteFideId "922579"]
[BlackFideId "1148486"]
[WhiteElo "2169"]
[BlackElo "2367"]
[Result "1-0"]
[Round "3"]
[TimeControl "180+1"]
[Date "2023.11.07"]
[WhiteClock "0:00:08"]
[BlackClock "0:00:25"]
[Board "153"]

1. e4 {[%clk 0:03:00]}  c5 {[%clk 0:02:57]} 2. c3 {[%clk 0:03:00]}  g6 {[%clk 0:02:56]} 3. d4 {[%clk 0:03:00]}  Bg7 {[%clk 0:02:57]} 4. d5 {[%clk 0:02:55]}  e6 {[%clk 0:02:51]} 5. Nf3 {[%clk 0:02:42]}  exd5 {[%clk 0:02:46]} 6. exd5 {[%clk 0:02:42]}  d6 {[%clk 0:02:46]} 7. Bd3 {[%clk 0:02:34]}  Ne7 {[%clk 0:02:43]} 8. c4 {[%clk 0:02:29]}  O-O {[%clk 0:02:38]} 9. O-O {[%clk 0:02:28]}  Bg4 {[%clk 0:02:37]} 10. h3 {[%clk 0:02:21]}  Bxf3 {[%clk 0:02:37]} 11. Qxf3 {[%clk 0:02:21]}  Nd7 {[%clk 0:02:38]} 12. Nc3 {[%clk 0:02:13]}  Ne5 {[%clk 0:02:36]} 13. Qg3 {[%clk 0:02:08]}  a6 {[%clk 0:02:27]} 14. a4 {[%clk 0:01:54]}  b6 {[%clk 0:02:10]} 15. Bg5 {[%clk 0:01:50]}  h6 {[%clk 0:02:08]} 16. Bd2 {[%clk 0:01:40]}  Re8 {[%clk 0:01:58]} 17. Rae1 {[%clk 0:01:36]}  Nxd3 {[%clk 0:01:56]} 18. Qxd3 {[%clk 0:01:35]}  Nf5 {[%clk 0:01:57]} 19. Rxe8+ {[%clk 0:01:29]}  Qxe8 {[%clk 0:01:56]} 20. Re1 {[%clk 0:01:30]}  Qd8 {[%clk 0:01:57]} 21. Bf4 {[%clk 0:01:15]}  Nd4 {[%clk 0:01:43]} 22. Ne4 {[%clk 0:01:09]}  Bf8 {[%clk 0:01:37]} 23. Qd2 {[%clk 0:00:55]}  Kh7 {[%clk 0:01:36]} 24. Be3 {[%clk 0:00:49]}  Bg7 {[%clk 0:01:33]} 25. Bxd4 {[%clk 0:00:48]}  Bxd4 {[%clk 0:01:33]} 26. b3 {[%clk 0:00:46]}  f5 {[%clk 0:01:15]} 27. Ng3 {[%clk 0:00:41]}  Qd7 {[%clk 0:01:13]} 28. Qe2 {[%clk 0:00:41]}  Rf8 {[%clk 0:01:04]} 29. Qe7+ {[%clk 0:00:40]}  Rf7 {[%clk 0:01:03]} 30. Qxd7 {[%clk 0:00:37]}  Rxd7 {[%clk 0:01:04]} 31. Ne2 {[%clk 0:00:33]}  Be5 {[%clk 0:01:00]} 32. f4 {[%clk 0:00:27]}  Bf6 {[%clk 0:00:58]} 33. Nc1 {[%clk 0:00:24]}  Kg7 {[%clk 0:00:56]} 34. Kf2 {[%clk 0:00:21]}  Kf7 {[%clk 0:00:56]} 35. Kf3 {[%clk 0:00:21]}  h5 {[%clk 0:00:55]} 36. Nd3 {[%clk 0:00:19]}  Bh4 {[%clk 0:00:53]} 37. g3 {[%clk 0:00:19]}  Bf6 {[%clk 0:00:53]} 38. Re6 {[%clk 0:00:18]}  Be7 {[%clk 0:00:48]} 39. Re1 {[%clk 0:00:17]}  Rb7 {[%clk 0:00:48]} 40. Ra1 {[%clk 0:00:17]}  b5 {[%clk 0:00:46]} 41. axb5 {[%clk 0:00:17]}  axb5 {[%clk 0:00:46]} 42. Ra6 {[%clk 0:00:17]}  bxc4 {[%clk 0:00:46]} 43. bxc4 {[%clk 0:00:17]}  Rb3 {[%clk 0:00:45]} 44. Ke2 {[%clk 0:00:17]}  Rc3 {[%clk 0:00:45]} 45. Ra4 {[%clk 0:00:17]}  Rc2+ {[%clk 0:00:45]} 46. Kf1 {[%clk 0:00:13]}  Rd2 {[%clk 0:00:43]} 47. Nf2 {[%clk 0:00:12]}  Rc2 {[%clk 0:00:37]} 48. Nd3 {[%clk 0:00:11]}  h4 {[%clk 0:00:37]} 49. g4 {[%clk 0:00:11]}  fxg4 {[%clk 0:00:36]} 50. hxg4 {[%clk 0:00:11]}  h3 {[%clk 0:00:37]} 51. Nf2 {[%clk 0:00:11]}  h2 {[%clk 0:00:29]} 52. Ra1 {[%clk 0:00:10]}  Bh4 {[%clk 0:00:26]} 53. Ra7+ {[%clk 0:00:08]}  Kf6 {[%clk 0:00:25]} 54. Ne4# {[%clk 0:00:08]} 1-0


[Site "https://www.chess.com"]

[Event "Titled Tuesday Blitz November 07 Late 2023"]
[White "Becerra, Juan David"]
[Black "Novikova, Margarita"]
[WhiteFideId "4404998"]
[BlackFideId "14109689"]
[WhiteElo "2354"]
[BlackElo "2163"]
[Result "1-0"]
[Round "3"]
[TimeControl "180+1"]
[Date "2023.11.07"]
[WhiteClock "0:00:47"]
[BlackClock "0:00:24"]
[Board "155"]

1. d4 {[%clk 0:03:00]}  e5 {[%clk 0:02:25]} 2. dxe5 {[%clk 0:02:59]}  Nc6 {[%clk 0:02:25]} 3. Nf3 {[%clk 0:02:58]}  Qe7 {[%clk 0:02:25]} 4. Qd5 {[%clk 0:02:58]}  Nb4 {[%clk 0:02:24]} 5. Qb3 {[%clk 0:02:55]}  Nc6 {[%clk 0:02:24]} 6. Bf4 {[%clk 0:02:54]}  Qb4+ {[%clk 0:02:23]} 7. Qxb4 {[%clk 0:02:51]}  Nxb4 {[%clk 0:02:14]} 8. Kd1 {[%clk 0:02:51]}  f6 {[%clk 0:02:12]} 9. c3 {[%clk 0:02:51]}  Nd5 {[%clk 0:02:11]} 10. Bg3 {[%clk 0:02:48]}  d6 {[%clk 0:02:10]} 11. e4 {[%clk 0:02:48]}  Nb6 {[%clk 0:02:10]} 12. exd6 {[%clk 0:02:47]}  Bxd6 {[%clk 0:02:10]} 13. Bxd6 {[%clk 0:02:47]}  cxd6 {[%clk 0:02:11]} 14. Kc2 {[%clk 0:02:43]}  Ne7 {[%clk 0:02:10]} 15. Na3 {[%clk 0:02:42]}  a6 {[%clk 0:02:08]} 16. Nc4 {[%clk 0:02:40]}  Nxc4 {[%clk 0:01:52]} 17. Bxc4 {[%clk 0:02:41]}  Bd7 {[%clk 0:01:49]} 18. Rad1 {[%clk 0:02:38]}  Bc6 {[%clk 0:01:48]} 19. Rhe1 {[%clk 0:02:34]}  O-O-O {[%clk 0:01:40]} 20. Nd4 {[%clk 0:02:32]}  Bd7 {[%clk 0:01:39]} 21. a4 {[%clk 0:02:15]}  Nc6 {[%clk 0:01:35]} 22. Nf5 {[%clk 0:02:06]}  Bxf5 {[%clk 0:01:28]} 23. exf5 {[%clk 0:02:07]}  Ne5 {[%clk 0:01:27]} 24. Be6+ {[%clk 0:02:06]}  Kb8 {[%clk 0:01:27]} 25. f4 {[%clk 0:02:06]}  Nc6 {[%clk 0:01:25]} 26. Bf7 {[%clk 0:02:02]}  Rd7 {[%clk 0:01:24]} 27. Bh5 {[%clk 0:01:57]}  g6 {[%clk 0:01:21]} 28. fxg6 {[%clk 0:01:55]}  hxg6 {[%clk 0:01:22]} 29. Bxg6 {[%clk 0:01:55]}  Rxh2 {[%clk 0:01:22]} 30. Re8+ {[%clk 0:01:53]}  Ka7 {[%clk 0:01:21]} 31. Be4 {[%clk 0:01:52]}  Rh4 {[%clk 0:01:13]} 32. g3 {[%clk 0:01:50]}  Rh2+ {[%clk 0:01:12]} 33. Kb1 {[%clk 0:01:47]}  Na5 {[%clk 0:01:10]} 34. Bf5 {[%clk 0:01:32]}  Rg7 {[%clk 0:01:06]} 35. Rxd6 {[%clk 0:01:06]}  Rxb2+ {[%clk 0:01:02]} 36. Ka1 {[%clk 0:01:01]}  Nc4 {[%clk 0:00:58]} 37. Rd4 {[%clk 0:00:55]}  Rxg3 {[%clk 0:00:47]} 38. Rxc4 {[%clk 0:00:53]}  Rf2 {[%clk 0:00:47]} 39. Rb4 {[%clk 0:00:51]}  Rgg2 {[%clk 0:00:39]} 40. Re7 {[%clk 0:00:48]}  Rf1+ {[%clk 0:00:24]} 41. Bb1 {[%clk 0:00:47]} 1-0


[Site "https://www.chess.com"]

[Event "Titled Tuesday Blitz November 07 Late 2023"]
[White "Martinez, Shawn"]
[Black "Ismayilova, Khanim"]
[WhiteFideId "2039770"]
[BlackFideId "13429019"]
[WhiteElo "2351"]
[BlackElo "2157"]
[Result "0-1"]
[Round "3"]
[TimeControl "180+1"]
[Date "2023.11.07"]
[WhiteClock "0:00:00"]
[BlackClock "0:00:46"]
[Board "156"]

1. e4 {[%clk 0:02:50]}  c5 {[%clk 0:02:59]} 2. Nc3 {[%clk 0:02:51]}  Nc6 {[%clk 0:02:59]} 3. Bb5 {[%clk 0:02:51]}  g6 {[%clk 0:02:58]} 4. Bxc6 {[%clk 0:02:49]}  dxc6 {[%clk 0:02:57]} 5. f4 {[%clk 0:02:49]}  Bg7 {[%clk 0:02:57]} 6. Nf3 {[%clk 0:02:49]}  Bg4 {[%clk 0:02:56]} 7. d3 {[%clk 0:02:50]}  e6 {[%clk 0:02:55]} 8. O-O {[%clk 0:02:50]}  Ne7 {[%clk 0:02:55]} 9. h3 {[%clk 0:02:49]}  Bxf3 {[%clk 0:02:55]} 10. Qxf3 {[%clk 0:02:50]}  c4 {[%clk 0:02:53]} 11. e5 {[%clk 0:02:45]}  cxd3 {[%clk 0:02:53]} 12. cxd3 {[%clk 0:02:45]}  Qd4+ {[%clk 0:02:47]} 13. Be3 {[%clk 0:02:30]}  Qxd3 {[%clk 0:02:44]} 14. Rad1 {[%clk 0:02:28]}  Qc4 {[%clk 0:02:42]} 15. Rd4 {[%clk 0:02:23]}  Qa6 {[%clk 0:02:28]} 16. Ne4 {[%clk 0:02:14]}  O-O {[%clk 0:02:20]} 17. g4 {[%clk 0:01:56]}  Rad8 {[%clk 0:02:16]} 18. Rfd1 {[%clk 0:01:41]}  Rxd4 {[%clk 0:02:14]} 19. Bxd4 {[%clk 0:01:40]}  Qxa2 {[%clk 0:02:12]} 20. Nf6+ {[%clk 0:01:36]}  Kh8 {[%clk 0:02:11]} 21. Bc3 {[%clk 0:01:29]}  Nd5 {[%clk 0:01:59]} 22. f5 {[%clk 0:01:01]}  Bxf6 {[%clk 0:01:37]} 23. exf6 {[%clk 0:00:57]}  Nxc3 {[%clk 0:01:34]} 24. bxc3 {[%clk 0:00:43]}  exf5 {[%clk 0:01:34]} 25. g5 {[%clk 0:00:35]}  Re8 {[%clk 0:01:20]} 26. Qe3 {[%clk 0:00:17]}  Qe6 {[%clk 0:01:08]} 27. Qxe6 {[%clk 0:00:13]}  fxe6 {[%clk 0:01:09]} 28. Rd7 {[%clk 0:00:12]}  e5 {[%clk 0:01:06]} 29. Re7 {[%clk 0:00:08]}  Rd8 {[%clk 0:01:01]} 30. f7 {[%clk 0:00:04]}  Kg7 {[%clk 0:00:59]} 31. Rxb7 {[%clk 0:00:01]}  Rf8 {[%clk 0:00:58]} 32. Rxa7 {[%clk 0:00:01]}  Rxf7 {[%clk 0:00:59]} 33. Ra6 {[%clk 0:00:01]}  Rc7 {[%clk 0:00:59]} 34. Kf2 {[%clk 0:00:01]}  Kf7 {[%clk 0:00:58]} 35. Ke3 {[%clk 0:00:02]}  Ke6 {[%clk 0:00:59]} 36. Kd3 {[%clk 0:00:02]}  Kd5 {[%clk 0:00:59]} 37. Kd2 {[%clk 0:00:03]}  e4 {[%clk 0:00:59]} 38. Ra8 {[%clk 0:00:03]}  f4 {[%clk 0:00:58]} 39. Ra5+ {[%clk 0:00:02]}  c5 {[%clk 0:00:58]} 40. Ra6 {[%clk 0:00:02]}  e3+ {[%clk 0:00:56]} 41. Ke2 {[%clk 0:00:02]}  Re7 {[%clk 0:00:54]} 42. Rf6 {[%clk 0:00:01]}  Ke4 {[%clk 0:00:54]} 43. h4 {[%clk 0:00:00]}  Rd7 {[%clk 0:00:46]} 0-1


[Site "https://www.chess.com"]